[Event "Titled Tuesday Blitz November 07 Early 2023"]
[White "Novikova, Galina"]
[Black "MIss_MIaMI"]
[WhiteFideId "4157095"]
[WhiteElo "2426"]
[BlackElo "2324"]
[Result "0-1"]
[Round "7"]
[TimeControl "180+1"]
[Date "2023.11.07"]
[WhiteClock "0:00:00"]
[BlackClock "0:00:09"]
[Board "147"]

1. e4 {[%clk 0:03:00]}  c5 {[%clk 0:03:00]} 2. Nf3 {[%clk 0:03:00]}  e6 {[%clk 0:03:00]} 3. b4 {[%clk 0:03:00]}  b6 {[%clk 0:02:57]} 4. bxc5 {[%clk 0:02:59]}  bxc5 {[%clk 0:02:57]} 5. c3 {[%clk 0:03:00]}  Bb7 {[%clk 0:02:56]} 6. Bd3 {[%clk 0:03:01]}  Nf6 {[%clk 0:02:55]} 7. Qe2 {[%clk 0:03:01]}  Be7 {[%clk 0:02:54]} 8. O-O {[%clk 0:03:01]}  d6 {[%clk 0:02:52]} 9. Bc2 {[%clk 0:03:01]}  O-O {[%clk 0:02:51]} 10. d4 {[%clk 0:03:02]}  Nc6 {[%clk 0:02:49]} 11. e5 {[%clk 0:02:59]}  Ne8 {[%clk 0:02:25]} 12. Qe4 {[%clk 0:02:48]}  g6 {[%clk 0:02:20]} 13. Bh6 {[%clk 0:02:36]}  Ng7 {[%clk 0:02:19]} 14. Qe3 {[%clk 0:02:33]}  cxd4 {[%clk 0:02:06]} 15. cxd4 {[%clk 0:02:34]}  Nb4 {[%clk 0:02:06]} 16. Bd3 {[%clk 0:02:18]}  Nxd3 {[%clk 0:02:02]} 17. Qxd3 {[%clk 0:02:19]}  dxe5 {[%clk 0:01:59]} 18. Nxe5 {[%clk 0:02:19]}  Qd5 {[%clk 0:01:55]} 19. Nf3 {[%clk 0:02:12]}  Rfd8 {[%clk 0:01:52]} 20. Nc3 {[%clk 0:02:11]}  Qh5 {[%clk 0:01:52]} 21. Bxg7 {[%clk 0:01:59]}  Kxg7 {[%clk 0:01:53]} 22. Ne4 {[%clk 0:01:54]}  Qa5 {[%clk 0:01:18]} 23. Rfe1 {[%clk 0:01:51]}  Rac8 {[%clk 0:01:15]} 24. Qe3 {[%clk 0:01:30]}  h6 {[%clk 0:01:11]} 25. h3 {[%clk 0:01:29]}  Bd5 {[%clk 0:01:11]} 26. Ne5 {[%clk 0:01:23]}  Rc2 {[%clk 0:01:06]} 27. Qf4 {[%clk 0:01:10]}  f5 {[%clk 0:00:46]} 28. Qg3 {[%clk 0:01:00]}  g5 {[%clk 0:00:40]} 29. Nc5 {[%clk 0:00:55]}  Bxc5 {[%clk 0:00:35]} 30. dxc5 {[%clk 0:00:56]}  Qxc5 {[%clk 0:00:32]} 31. Nd3 {[%clk 0:00:31]}  Qd6 {[%clk 0:00:31]} 32. Qe3 {[%clk 0:00:30]}  Rd7 {[%clk 0:00:28]} 33. a4 {[%clk 0:00:31]}  Be4 {[%clk 0:00:25]} 34. Rad1 {[%clk 0:00:15]}  Qd4 {[%clk 0:00:18]} 35. Nb4 {[%clk 0:00:03]}  Qxb4 {[%clk 0:00:16]} 36. Rxd7+ {[%clk 0:00:04]}  Kg6 {[%clk 0:00:16]} 37. Red1 {[%clk 0:00:03]}  Qxa4 {[%clk 0:00:12]} 38. Qc5 {[%clk 0:00:02]}  Rxc5 {[%clk 0:00:10]} 39. Re7 {[%clk 0:00:00]}  Qxd1+ {[%clk 0:00:09]} 0-1


[Site "https://www.chess.com"]

[Event "Titled Tuesday Blitz November 07 Early 2023"]
[White "crazy_m_attack"]
[Black "Petrova, Irina"]
[BlackFideId "14124122"]
[WhiteElo "2426"]
[BlackElo "2320"]
[Result "1-0"]
[Round "7"]
[TimeControl "180+1"]
[Date "2023.11.07"]
[WhiteClock "0:01:35"]
[BlackClock "0:01:31"]
[Board "148"]

1. e4 {[%clk 0:03:00]}  d6 {[%clk 0:03:00]} 2. d4 {[%clk 0:03:00]}  Nf6 {[%clk 0:03:01]} 3. Nc3 {[%clk 0:03:00]}  e5 {[%clk 0:03:02]} 4. Nf3 {[%clk 0:03:00]}  Nbd7 {[%clk 0:03:01]} 5. Bc4 {[%clk 0:02:59]}  Be7 {[%clk 0:03:01]} 6. O-O {[%clk 0:02:58]}  O-O {[%clk 0:03:01]} 7. h3 {[%clk 0:02:56]}  c6 {[%clk 0:03:01]} 8. a4 {[%clk 0:02:57]}  h6 {[%clk 0:03:01]} 9. Re1 {[%clk 0:02:56]}  Re8 {[%clk 0:03:01]} 10. Ba2 {[%clk 0:02:55]}  Bf8 {[%clk 0:03:01]} 11. d5 {[%clk 0:02:50]}  Qc7 {[%clk 0:02:58]} 12. dxc6 {[%clk 0:02:44]}  bxc6 {[%clk 0:02:59]} 13. Be3 {[%clk 0:02:43]}  Nb8 {[%clk 0:02:38]} 14. Nh4 {[%clk 0:02:41]}  Be6 {[%clk 0:02:38]} 15. Qf3 {[%clk 0:02:36]}  Nbd7 {[%clk 0:02:36]} 16. Nf5 {[%clk 0:02:31]}  Bxa2 {[%clk 0:02:28]} 17. Rxa2 {[%clk 0:02:28]}  Kh7 {[%clk 0:02:22]} 18. g4 {[%clk 0:02:18]}  g6 {[%clk 0:02:22]} 19. Ng3 {[%clk 0:02:16]}  Bg7 {[%clk 0:01:58]} 20. Rd1 {[%clk 0:02:07]}  d5 {[%clk 0:01:55]} 21. exd5 {[%clk 0:02:04]}  cxd5 {[%clk 0:01:56]} 22. Nxd5 {[%clk 0:02:02]}  Nxd5 {[%clk 0:01:56]} 23. Qxd5 {[%clk 0:02:00]}  Nf6 {[%clk 0:01:56]} 24. Qb3 {[%clk 0:01:55]}  Rad8 {[%clk 0:01:52]} 25. Raa1 {[%clk 0:01:54]}  Nd5 {[%clk 0:01:50]} 26. Rxd5 {[%clk 0:01:53]}  Rb8 {[%clk 0:01:43]} 27. Qc3 {[%clk 0:01:48]}  Qb7 {[%clk 0:01:40]} 28. Rb5 {[%clk 0:01:46]}  Qf3 {[%clk 0:01:31]} 29. Bxa7 {[%clk 0:01:35]} 1-0


[Site "https://www.chess.com"]

[Event "Titled Tuesday Blitz November 07 Early 2023"]
[White "Azali, Tannaz"]
[Black "Ardila, Oscar Humberto"]
[WhiteFideId "12537721"]
[BlackFideId "4404742"]
[WhiteElo "2425"]
[BlackElo "2319"]
[Result "1-0"]
[Round "7"]
[TimeControl "180+1"]
[Date "2023.11.07"]
[WhiteClock "0:01:26"]
[BlackClock "0:01:18"]
[Board "149"]

1. d4 {[%clk 0:03:00]}  Nf6 {[%clk 0:02:59]} 2. c4 {[%clk 0:03:01]}  e6 {[%clk 0:03:00]} 3. Nc3 {[%clk 0:03:01]}  Bb4 {[%clk 0:03:00]} 4. f3 {[%clk 0:03:00]}  c5 {[%clk 0:02:59]} 5. d5 {[%clk 0:03:00]}  exd5 {[%clk 0:02:58]} 6. cxd5 {[%clk 0:03:00]}  d6 {[%clk 0:02:56]} 7. e4 {[%clk 0:03:00]}  O-O {[%clk 0:02:55]} 8. Ne2 {[%clk 0:03:00]}  Nbd7 {[%clk 0:02:50]} 9. Ng3 {[%clk 0:03:00]}  a6 {[%clk 0:02:46]} 10. Be2 {[%clk 0:02:59]}  b5 {[%clk 0:02:45]} 11. O-O {[%clk 0:02:58]}  Ba5 {[%clk 0:02:45]} 12. a4 {[%clk 0:02:56]}  b4 {[%clk 0:02:44]} 13. Nb1 {[%clk 0:02:56]}  Bb6 {[%clk 0:02:32]} 14. Kh1 {[%clk 0:02:56]}  a5 {[%clk 0:02:31]} 15. Nd2 {[%clk 0:02:56]}  Re8 {[%clk 0:02:12]} 16. Nc4 {[%clk 0:02:55]}  Ne5 {[%clk 0:02:12]} 17. Bf4 {[%clk 0:02:23]}  Nxc4 {[%clk 0:02:11]} 18. Bxc4 {[%clk 0:02:23]}  Nh5 {[%clk 0:02:10]} 19. Nxh5 {[%clk 0:02:22]}  g6 {[%clk 0:02:06]} 20. Ng3 {[%clk 0:02:19]}  Qf6 {[%clk 0:02:06]} 21. Qd2 {[%clk 0:02:19]}  h5 {[%clk 0:02:03]} 22. Rae1 {[%clk 0:02:13]}  h4 {[%clk 0:02:03]} 23. Ne2 {[%clk 0:02:12]}  Bd7 {[%clk 0:01:58]} 24. Bg5 {[%clk 0:02:08]}  Qh8 {[%clk 0:01:58]} 25. b3 {[%clk 0:02:06]}  f6 {[%clk 0:01:54]} 26. Bf4 {[%clk 0:02:04]}  g5 {[%clk 0:01:54]} 27. Bxd6 {[%clk 0:02:02]}  h3 {[%clk 0:01:54]} 28. g3 {[%clk 0:02:01]}  Qh5 {[%clk 0:01:49]} 29. g4 {[%clk 0:01:48]}  Qh4 {[%clk 0:01:44]} 30. Ng3 {[%clk 0:01:45]}  Kf7 {[%clk 0:01:35]} 31. e5 {[%clk 0:01:45]}  fxe5 {[%clk 0:01:30]} 32. Bxe5 {[%clk 0:01:44]}  Kg6 {[%clk 0:01:23]} 33. Qd3+ {[%clk 0:01:43]}  Kh6 {[%clk 0:01:23]} 34. Nf5+ {[%clk 0:01:27]}  Bxf5 {[%clk 0:01:22]} 35. Qxf5 {[%clk 0:01:28]}  Rf8 {[%clk 0:01:22]} 36. Qe6+ {[%clk 0:01:28]}  Kh7 {[%clk 0:01:18]} 37. Bd3+ {[%clk 0:01:26]} 1-0


[Site "https://www.chess.com"]

[Event "Titled Tuesday Blitz November 07 Early 2023"]
[White "Pumpkin_in_moonlight"]
[Black "Su, Dion"]
[BlackFideId "2029731"]
[WhiteElo "2319"]
[BlackElo "2415"]
[Result "0-1"]
[Round "7"]
[TimeControl "180+1"]
[Date "2023.11.07"]
[WhiteClock "0:00:55"]
[BlackClock "0:01:51"]
[Board "150"]

1. e4 {[%clk 0:03:00]}  e6 {[%clk 0:02:57]} 2. d4 {[%clk 0:03:00]}  d5 {[%clk 0:02:57]} 3. Nc3 {[%clk 0:02:54]}  Nf6 {[%clk 0:02:57]} 4. e5 {[%clk 0:02:49]}  Nfd7 {[%clk 0:02:51]} 5. f4 {[%clk 0:02:49]}  c5 {[%clk 0:02:52]} 6. Nf3 {[%clk 0:02:49]}  Nc6 {[%clk 0:02:52]} 7. Be3 {[%clk 0:02:49]}  Be7 {[%clk 0:02:53]} 8. Qd2 {[%clk 0:02:47]}  O-O {[%clk 0:02:53]} 9. g4 {[%clk 0:02:32]}  f6 {[%clk 0:02:49]} 10. O-O-O {[%clk 0:02:17]}  cxd4 {[%clk 0:02:32]} 11. Nxd4 {[%clk 0:02:13]}  Nxd4 {[%clk 0:02:32]} 12. Bxd4 {[%clk 0:02:12]}  fxe5 {[%clk 0:02:32]} 13. fxe5 {[%clk 0:02:05]}  Nxe5 {[%clk 0:02:33]} 14. Kb1 {[%clk 0:01:54]}  Nf3 {[%clk 0:02:29]} 15. Qe2 {[%clk 0:01:49]}  Nxd4 {[%clk 0:02:28]} 16. Rxd4 {[%clk 0:01:49]}  Bd7 {[%clk 0:02:26]} 17. Bg2 {[%clk 0:01:48]}  Bf6 {[%clk 0:02:10]} 18. Rb4 {[%clk 0:01:40]}  a5 {[%clk 0:02:01]} 19. Rxb7 {[%clk 0:01:34]}  Rb8 {[%clk 0:02:01]} 20. Qa6 {[%clk 0:01:26]}  Bxc3 {[%clk 0:01:54]} 21. bxc3 {[%clk 0:01:24]}  Qc7 {[%clk 0:01:55]} 22. Rxb8 {[%clk 0:01:04]}  Rxb8+ {[%clk 0:01:55]} 23. Kc1 {[%clk 0:01:03]}  Qf4+ {[%clk 0:01:51]} 24. Kd1 {[%clk 0:01:01]}  Rb1+ {[%clk 0:01:51]} 25. Ke2 {[%clk 0:00:55]}  Bb5+ {[%clk 0:01:51]} 0-1


[Site "https://www.chess.com"]

[Event "Titled Tuesday Blitz November 07 Early 2023"]
[White "Mazzilli, Piero"]
[Black "Cristi_Coca"]
[WhiteFideId "807087"]
[WhiteElo "2314"]
[BlackElo "2414"]
[Result "0-1"]
[Round "7"]
[TimeControl "180+1"]
[Date "2023.11.07"]
[WhiteClock "0:00:04"]
[BlackClock "0:01:07"]
[Board "152"]

1. e4 {[%clk 0:02:57]}  c5 {[%clk 0:02:59]} 2. Nf3 {[%clk 0:02:57]}  e6 {[%clk 0:02:59]} 3. c3 {[%clk 0:02:57]}  d5 {[%clk 0:02:55]} 4. exd5 {[%clk 0:02:58]}  exd5 {[%clk 0:02:55]} 5. d4 {[%clk 0:02:58]}  Nc6 {[%clk 0:02:55]} 6. Bb5 {[%clk 0:02:55]}  Nf6 {[%clk 0:02:52]} 7. O-O {[%clk 0:02:54]}  Bd6 {[%clk 0:02:49]} 8. dxc5 {[%clk 0:02:53]}  Bxc5 {[%clk 0:02:49]} 9. Re1+ {[%clk 0:02:45]}  Be6 {[%clk 0:02:50]} 10. Nd4 {[%clk 0:02:39]}  O-O {[%clk 0:02:48]} 11. Be3 {[%clk 0:02:25]}  Qb6 {[%clk 0:02:32]} 12. a4 {[%clk 0:01:38]}  Nxd4 {[%clk 0:02:22]} 13. Bxd4 {[%clk 0:01:35]}  Bxd4 {[%clk 0:02:22]} 14. Qxd4 {[%clk 0:01:34]}  Qxd4 {[%clk 0:02:19]} 15. cxd4 {[%clk 0:01:35]}  Rac8 {[%clk 0:02:08]} 16. Nc3 {[%clk 0:01:34]}  Bf5 {[%clk 0:01:58]} 17. f3 {[%clk 0:01:34]}  a6 {[%clk 0:01:56]} 18. Bf1 {[%clk 0:01:32]}  Rfe8 {[%clk 0:01:55]} 19. Kf2 {[%clk 0:01:32]}  Bc2 {[%clk 0:01:52]} 20. Re5 {[%clk 0:01:28]}  Bb3 {[%clk 0:01:51]} 21. Rae1 {[%clk 0:01:15]}  Kf8 {[%clk 0:01:51]} 22. a5 {[%clk 0:01:09]}  Nd7 {[%clk 0:01:45]} 23. Rxe8+ {[%clk 0:01:05]}  Rxe8 {[%clk 0:01:46]} 24. g3 {[%clk 0:00:51]}  Nb8 {[%clk 0:01:45]} 25. Bh3 {[%clk 0:00:24]}  Nc6 {[%clk 0:01:40]} 26. Rxe8+ {[%clk 0:00:22]}  Kxe8 {[%clk 0:01:41]} 27. Bc8 {[%clk 0:00:22]}  Nxa5 {[%clk 0:01:40]} 28. f4 {[%clk 0:00:20]}  Kd8 {[%clk 0:01:40]} 29. Bf5 {[%clk 0:00:19]}  g6 {[%clk 0:01:37]} 30. Bg4 {[%clk 0:00:20]}  Kc7 {[%clk 0:01:31]} 31. Bf3 {[%clk 0:00:19]}  Kd6 {[%clk 0:01:31]} 32. Ke2 {[%clk 0:00:19]}  b5 {[%clk 0:01:25]} 33. Kd2 {[%clk 0:00:14]}  b4 {[%clk 0:01:21]} 34. Ne2 {[%clk 0:00:13]}  Nc4+ {[%clk 0:01:21]} 35. Kc1 {[%clk 0:00:12]}  a5 {[%clk 0:01:17]} 36. Ng1 {[%clk 0:00:11]}  a4 {[%clk 0:01:16]} 37. Be2 {[%clk 0:00:11]}  a3 {[%clk 0:01:13]} 38. bxa3 {[%clk 0:00:11]}  bxa3 {[%clk 0:01:13]} 39. Bxc4 {[%clk 0:00:10]}  dxc4 {[%clk 0:01:11]} 40. Nf3 {[%clk 0:00:10]}  c3 {[%clk 0:01:08]} 41. Ne5 {[%clk 0:00:04]}  a2 {[%clk 0:01:07]} 0-1


[Site "https://www.chess.com"]

[Event "Titled Tuesday Blitz November 07 Early 2023"]
[White "Cesar Maestre, Bernardo"]
[Black "Kohler, Aran"]
[WhiteFideId "24542547"]
[BlackFideId "1002856"]
[WhiteElo "2408"]
[BlackElo "2289"]
[Result "1-0"]
[Round "7"]
[TimeControl "180+1"]
[Date "2023.11.07"]
[WhiteClock "0:00:14"]
[BlackClock "0:00:00"]
[Board "155"]

1. e4 {[%clk 0:03:00]}  c6 {[%clk 0:02:59]} 2. d4 {[%clk 0:02:57]}  d5 {[%clk 0:03:00]} 3. Nc3 {[%clk 0:02:57]}  dxe4 {[%clk 0:02:59]} 4. Nxe4 {[%clk 0:02:58]}  Bf5 {[%clk 0:02:58]} 5. Ng3 {[%clk 0:02:57]}  Bg6 {[%clk 0:02:59]} 6. h4 {[%clk 0:02:54]}  h6 {[%clk 0:02:58]} 7. Nf3 {[%clk 0:02:54]}  Nd7 {[%clk 0:02:57]} 8. h5 {[%clk 0:02:54]}  Bh7 {[%clk 0:02:56]} 9. Bd3 {[%clk 0:02:54]}  Ngf6 {[%clk 0:02:57]} 10. Bxh7 {[%clk 0:02:54]}  Nxh7 {[%clk 0:02:57]} 11. Bf4 {[%clk 0:02:50]}  e6 {[%clk 0:02:55]} 12. Qe2 {[%clk 0:02:47]}  Be7 {[%clk 0:02:56]} 13. O-O-O {[%clk 0:02:45]}  O-O {[%clk 0:02:55]} 14. Kb1 {[%clk 0:02:45]}  a5 {[%clk 0:02:55]} 15. Ne4 {[%clk 0:02:43]}  a4 {[%clk 0:02:48]} 16. g4 {[%clk 0:02:41]}  Ng5 {[%clk 0:02:33]} 17. Nfxg5 {[%clk 0:02:27]}  hxg5 {[%clk 0:02:34]} 18. Bc1 {[%clk 0:02:25]}  a3 {[%clk 0:02:33]} 19. b3 {[%clk 0:02:24]}  b5 {[%clk 0:02:19]} 20. h6 {[%clk 0:02:22]}  g6 {[%clk 0:02:19]} 21. Qe3 {[%clk 0:02:00]}  Kh7 {[%clk 0:01:42]} 22. Nxg5+ {[%clk 0:01:53]}  Bxg5 {[%clk 0:01:42]} 23. Qxg5 {[%clk 0:01:54]}  Qxg5 {[%clk 0:01:21]} 24. Bxg5 {[%clk 0:01:55]}  Nb6 {[%clk 0:01:07]} 25. c3 {[%clk 0:01:46]}  Nd5 {[%clk 0:01:04]} 26. Kc2 {[%clk 0:01:46]}  b4 {[%clk 0:01:03]} 27. c4 {[%clk 0:01:35]}  Nc3 {[%clk 0:01:03]} 28. Ra1 {[%clk 0:01:33]}  f6 {[%clk 0:00:58]} 29. Bd2 {[%clk 0:01:32]}  Ne4 {[%clk 0:00:57]} 30. Bxb4 {[%clk 0:01:24]}  Rfd8 {[%clk 0:00:53]} 31. f3 {[%clk 0:01:22]}  Ng5 {[%clk 0:00:47]} 32. Be7 {[%clk 0:01:11]}  Rd7 {[%clk 0:00:33]} 33. Bxf6 {[%clk 0:01:10]}  Nxf3 {[%clk 0:00:33]} 34. Rad1 {[%clk 0:01:06]}  Rf8 {[%clk 0:00:29]} 35. g5 {[%clk 0:01:05]}  Rdf7 {[%clk 0:00:16]} 36. Kc3 {[%clk 0:00:54]}  Rxf6 {[%clk 0:00:06]} 37. gxf6 {[%clk 0:00:54]}  Rxf6 {[%clk 0:00:06]} 38. Kb4 {[%clk 0:00:54]}  Rf5 {[%clk 0:00:06]} 39. Kxa3 {[%clk 0:00:51]}  g5 {[%clk 0:00:04]} 40. Rhf1 {[%clk 0:00:32]}  g4 {[%clk 0:00:04]} 41. Rd3 {[%clk 0:00:30]}  Kxh6 {[%clk 0:00:04]} 42. Kb4 {[%clk 0:00:27]}  Kg5 {[%clk 0:00:04]} 43. a4 {[%clk 0:00:25]}  Kh4 {[%clk 0:00:04]} 44. a5 {[%clk 0:00:22]}  g3 {[%clk 0:00:04]} 45. Rdxf3 {[%clk 0:00:14]}  Rxf3 {[%clk 0:00:04]} 46. Rxf3 {[%clk 0:00:14]}  g2 {[%clk 0:00:04]} 47. Rf4+ {[%clk 0:00:15]}  Kh5 {[%clk 0:00:02]} 48. Rf8 {[%clk 0:00:14]}  g1=Q {[%clk 0:00:00]} 49. Rh8+ {[%clk 0:00:14]} 1-0


[Site "https://www.chess.com"]

[Event "Titled Tuesday Blitz November 07 Early 2023"]
[White "Osinovsky, Stepan"]
[Black "Belanoff, Ted"]
[WhiteFideId "4157354"]
[BlackFideId "2070588"]
[WhiteElo "2402"]
[BlackElo "2287"]
[Result "1-0"]
[Round "7"]
[TimeControl "180+1"]
[Date "2023.11.07"]
[WhiteClock "0:01:13"]
[BlackClock "0:01:37"]
[Board "157"]

1. e4 {[%clk 0:03:00]}  d5 {[%clk 0:02:58]} 2. exd5 {[%clk 0:03:00]}  Qxd5 {[%clk 0:02:59]} 3. Nc3 {[%clk 0:03:00]}  Qd6 {[%clk 0:02:59]} 4. d4 {[%clk 0:02:52]}  c6 {[%clk 0:02:59]} 5. Qf3 {[%clk 0:02:49]}  Nf6 {[%clk 0:02:59]} 6. Bf4 {[%clk 0:02:48]}  Qxd4 {[%clk 0:02:59]} 7. Bd3 {[%clk 0:02:44]}  e5 {[%clk 0:02:53]} 8. Nge2 {[%clk 0:02:41]}  Qd6 {[%clk 0:02:51]} 9. O-O-O {[%clk 0:02:23]}  exf4 {[%clk 0:02:36]} 10. Bf5 {[%clk 0:02:05]}  Qc7 {[%clk 0:02:24]} 11. Bxc8 {[%clk 0:02:03]}  Qxc8 {[%clk 0:02:14]} 12. Rhe1 {[%clk 0:01:54]}  Be7 {[%clk 0:02:14]} 13. Nd4 {[%clk 0:01:41]}  Kf8 {[%clk 0:02:05]} 14. Qxf4 {[%clk 0:01:27]}  Nbd7 {[%clk 0:01:47]} 15. Rxe7 {[%clk 0:01:18]}  Kxe7 {[%clk 0:01:41]} 16. Nf5+ {[%clk 0:01:17]}  Kf8 {[%clk 0:01:39]} 17. Qd6+ {[%clk 0:01:14]}  Ke8 {[%clk 0:01:37]} 18. Qe7# {[%clk 0:01:13]} 1-0


[Site "https://www.chess.com"]

[Event "Titled Tuesday Blitz November 07 Early 2023"]
[White "De Souza, Cristiano Gomes"]
[Black "Begunov, Konstantin"]
[WhiteFideId "2151758"]
[BlackFideId "4118510"]
[WhiteElo "2285"]
[BlackElo "2401"]
[Result "1-0"]
[Round "7"]
[TimeControl "180+1"]
[Date "2023.11.07"]
[WhiteClock "0:00:40"]
[BlackClock "0:00:00"]
[Board "158"]

1. d4 {[%clk 0:03:00]}  d5 {[%clk 0:02:58]} 2. c4 {[%clk 0:02:56]}  c6 {[%clk 0:02:59]} 3. Nf3 {[%clk 0:02:55]}  Nf6 {[%clk 0:03:00]} 4. Nc3 {[%clk 0:02:56]}  dxc4 {[%clk 0:03:00]} 5. a4 {[%clk 0:02:55]}  Bg4 {[%clk 0:03:00]} 6. Ne5 {[%clk 0:02:54]}  Bh5 {[%clk 0:03:01]} 7. f3 {[%clk 0:02:54]}  Nfd7 {[%clk 0:03:00]} 8. Nxc4 {[%clk 0:02:54]}  e5 {[%clk 0:03:00]} 9. Nxe5 {[%clk 0:02:41]}  Nxe5 {[%clk 0:02:59]} 10. dxe5 {[%clk 0:02:40]}  Nd7 {[%clk 0:03:00]} 11. Bf4 {[%clk 0:02:35]}  Bb4 {[%clk 0:02:59]} 12. g4 {[%clk 0:02:30]}  Bg6 {[%clk 0:02:56]} 13. Bg3 {[%clk 0:02:28]}  h5 {[%clk 0:02:37]} 14. h4 {[%clk 0:02:02]}  hxg4 {[%clk 0:02:31]} 15. fxg4 {[%clk 0:02:01]}  Qe7 {[%clk 0:02:24]} 16. Qd4 {[%clk 0:01:56]}  Bc5 {[%clk 0:02:08]} 17. Qf4 {[%clk 0:01:52]}  O-O-O {[%clk 0:01:34]} 18. h5 {[%clk 0:01:51]}  f6 {[%clk 0:01:00]} 19. exf6 {[%clk 0:01:43]}  Nxf6 {[%clk 0:00:51]} 20. Qb8+ {[%clk 0:01:41]}  Kd7 {[%clk 0:00:50]} 21. Qxb7+ {[%clk 0:01:40]}  Ke8 {[%clk 0:00:48]} 22. Qxc6+ {[%clk 0:01:35]}  Kf8 {[%clk 0:00:45]} 23. Bg2 {[%clk 0:01:21]}  Bd3 {[%clk 0:00:28]} 24. Qf3 {[%clk 0:01:11]}  Kg8 {[%clk 0:00:14]} 25. g5 {[%clk 0:00:55]}  Ne8 {[%clk 0:00:05]} 26. Rd1 {[%clk 0:00:46]}  Bc2 {[%clk 0:00:04]} 27. Rxd8 {[%clk 0:00:45]}  Qxd8 {[%clk 0:00:04]} 28. Qd5+ {[%clk 0:00:44]}  Qxd5 {[%clk 0:00:04]} 29. Bxd5+ {[%clk 0:00:44]}  Kf8 {[%clk 0:00:00]} 30. Kd2 {[%clk 0:00:40]} 1-0


[Site "https://www.chess.com"]

[Event "Titled Tuesday Blitz November 07 Early 2023"]
[White "Matveeva, Olga"]
[Black "Quirke, Jeffrey"]
[WhiteFideId "24107018"]
[BlackFideId "2013029"]
[WhiteElo "2396"]
[BlackElo "2249"]
[Result "1-0"]
[Round "7"]
[TimeControl "180+1"]
[Date "2023.11.07"]
[WhiteClock "0:00:17"]
[BlackClock "0:00:00"]
[Board "159"]

1. d4 {[%clk 0:03:00]}  Nf6 {[%clk 0:02:52]} 2. c4 {[%clk 0:03:01]}  g6 {[%clk 0:02:52]} 3. g3 {[%clk 0:03:01]}  Bg7 {[%clk 0:02:51]} 4. Bg2 {[%clk 0:03:02]}  d5 {[%clk 0:02:51]} 5. cxd5 {[%clk 0:03:02]}  Nxd5 {[%clk 0:02:52]} 6. Nf3 {[%clk 0:03:02]}  O-O {[%clk 0:02:51]} 7. O-O {[%clk 0:03:03]}  Nb6 {[%clk 0:02:51]} 8. Nc3 {[%clk 0:03:03]}  Nc6 {[%clk 0:02:51]} 9. e3 {[%clk 0:03:03]}  Re8 {[%clk 0:02:50]} 10. Re1 {[%clk 0:03:04]}  e5 {[%clk 0:02:49]} 11. d5 {[%clk 0:03:04]}  Na5 {[%clk 0:02:49]} 12. e4 {[%clk 0:03:04]}  c6 {[%clk 0:02:49]} 13. b3 {[%clk 0:02:50]}  cxd5 {[%clk 0:02:17]} 14. exd5 {[%clk 0:02:51]}  e4 {[%clk 0:02:12]} 15. Nxe4 {[%clk 0:02:52]}  Bxa1 {[%clk 0:02:08]} 16. Bg5 {[%clk 0:02:52]}  f6 {[%clk 0:01:19]} 17. Bxf6 {[%clk 0:02:51]}  Bxf6 {[%clk 0:01:18]} 18. Nxf6+ {[%clk 0:02:51]}  Qxf6 {[%clk 0:01:17]} 19. Rxe8+ {[%clk 0:02:51]}  Kg7 {[%clk 0:01:13]} 20. Qe1 {[%clk 0:02:39]}  Bg4 {[%clk 0:00:54]} 21. Re7+ {[%clk 0:01:53]}  Kf8 {[%clk 0:00:50]} 22. Rxh7 {[%clk 0:01:11]}  Re8 {[%clk 0:00:45]} 23. Qxa5 {[%clk 0:00:43]}  Qa1+ {[%clk 0:00:18]} 24. Bf1 {[%clk 0:00:36]}  Bxf3 {[%clk 0:00:19]} 25. Qc5+ {[%clk 0:00:20]}  Kg8 {[%clk 0:00:18]} 26. Qc7 {[%clk 0:00:20]}  Qf6 {[%clk 0:00:10]} 27. Qxb7 {[%clk 0:00:20]}  Bxd5 {[%clk 0:00:06]} 28. Qxa7 {[%clk 0:00:19]}  Bf7 {[%clk 0:00:04]} 29. Rxf7 {[%clk 0:00:17]}  Qxf7 {[%clk 0:00:00]} 30. Qxb6 {[%clk 0:00:17]} 1-0


[Site "https://www.chess.com"]

[Event "Titled Tuesday Blitz November 07 Early 2023"]
[White "Juicy_Fork"]
[Black "Modric, Nesa"]
[BlackFideId "922579"]
[WhiteElo "2385"]
[BlackElo "2165"]
[Result "0-1"]
[Round "7"]
[TimeControl "180+1"]
[Date "2023.11.07"]
[WhiteClock "0:00:23"]
[BlackClock "0:00:16"]
[Board "163"]

1. e4 {[%clk 0:03:00]}  d5 {[%clk 0:02:55]} 2. exd5 {[%clk 0:02:58]}  Qxd5 {[%clk 0:02:56]} 3. Nc3 {[%clk 0:02:58]}  Qa5 {[%clk 0:02:56]} 4. d4 {[%clk 0:02:56]}  c6 {[%clk 0:02:57]} 5. Nf3 {[%clk 0:02:54]}  Nf6 {[%clk 0:02:56]} 6. Bc4 {[%clk 0:02:52]}  Bf5 {[%clk 0:02:56]} 7. Bd2 {[%clk 0:02:50]}  e6 {[%clk 0:02:57]} 8. Qe2 {[%clk 0:02:49]}  Bb4 {[%clk 0:02:56]} 9. a3 {[%clk 0:02:49]}  Nbd7 {[%clk 0:02:56]} 10. O-O {[%clk 0:02:41]}  Bxc3 {[%clk 0:02:56]} 11. Bxc3 {[%clk 0:02:42]}  Qc7 {[%clk 0:02:56]} 12. Ne5 {[%clk 0:02:36]}  O-O {[%clk 0:02:50]} 13. h3 {[%clk 0:02:28]}  Nxe5 {[%clk 0:02:31]} 14. dxe5 {[%clk 0:02:28]}  Ne4 {[%clk 0:02:27]} 15. g4 {[%clk 0:02:16]}  Nxc3 {[%clk 0:02:24]} 16. bxc3 {[%clk 0:02:17]}  Bg6 {[%clk 0:02:19]} 17. f4 {[%clk 0:02:08]}  Qb6+ {[%clk 0:02:03]} 18. Kh2 {[%clk 0:02:02]}  Qc5 {[%clk 0:01:47]} 19. f5 {[%clk 0:01:52]}  exf5 {[%clk 0:01:47]} 20. gxf5 {[%clk 0:01:51]}  Bh5 {[%clk 0:01:48]} 21. Qxh5 {[%clk 0:01:51]}  Qxc4 {[%clk 0:01:48]} 22. f6 {[%clk 0:01:51]}  Rfd8 {[%clk 0:01:35]} 23. Rf2 {[%clk 0:01:46]}  Rd2 {[%clk 0:01:09]} 24. Rxd2 {[%clk 0:01:19]}  Qf4+ {[%clk 0:01:09]} 25. Kh1 {[%clk 0:01:19]}  Qxd2 {[%clk 0:01:07]} 26. Rd1 {[%clk 0:01:16]}  Qxc2 {[%clk 0:00:56]} 27. Rg1 {[%clk 0:01:03]}  Qe4+ {[%clk 0:00:51]} 28. Rg2 {[%clk 0:01:02]}  Rd8 {[%clk 0:00:45]} 29. fxg7 {[%clk 0:00:49]}  Rd2 {[%clk 0:00:27]} 30. Qg4 {[%clk 0:00:32]}  Qxg2+ {[%clk 0:00:19]} 31. Qxg2 {[%clk 0:00:30]}  Rxg2 {[%clk 0:00:20]} 32. Kxg2 {[%clk 0:00:30]}  Kxg7 {[%clk 0:00:20]} 33. Kf3 {[%clk 0:00:31]}  Kg6 {[%clk 0:00:21]} 34. Kg4 {[%clk 0:00:31]}  c5 {[%clk 0:00:19]} 35. h4 {[%clk 0:00:31]}  b5 {[%clk 0:00:18]} 36. h5+ {[%clk 0:00:27]}  Kg7 {[%clk 0:00:17]} 37. Kf5 {[%clk 0:00:26]}  a5 {[%clk 0:00:17]} 38. h6+ {[%clk 0:00:25]}  Kf8 {[%clk 0:00:17]} 39. Ke4 {[%clk 0:00:22]}  b4 {[%clk 0:00:16]} 40. cxb4 {[%clk 0:00:21]}  cxb4 {[%clk 0:00:15]} 41. axb4 {[%clk 0:00:21]}  axb4 {[%clk 0:00:15]} 42. Kd4 {[%clk 0:00:21]}  Ke7 {[%clk 0:00:16]} 43. Kc4 {[%clk 0:00:22]}  Ke6 {[%clk 0:00:16]} 44. Kxb4 {[%clk 0:00:23]}  Kxe5 {[%clk 0:00:17]} 45. Kc5 {[%clk 0:00:23]}  Kf6 {[%clk 0:00:18]} 46. Kd5 {[%clk 0:00:24]}  Kg6 {[%clk 0:00:18]} 47. Ke5 {[%clk 0:00:25]}  Kxh6 {[%clk 0:00:19]} 48. Kf6 {[%clk 0:00:26]}  Kh5 {[%clk 0:00:17]} 49. Kf5 {[%clk 0:00:26]}  h6 {[%clk 0:00:15]} 50. Kf4 {[%clk 0:00:25]}  Kg6 {[%clk 0:00:16]} 51. Kg4 {[%clk 0:00:26]}  f6 {[%clk 0:00:15]} 52. Kf4 {[%clk 0:00:26]}  h5 {[%clk 0:00:15]} 53. Kg3 {[%clk 0:00:27]}  Kg5 {[%clk 0:00:16]} 54. Kh3 {[%clk 0:00:25]}  f5 {[%clk 0:00:16]} 55. Kg2 {[%clk 0:00:23]}  Kg4 {[%clk 0:00:16]} 0-1


[Site "https://www.chess.com"]